bitfinex/quotes_ETHUSD_20241018
["timestamp","ask_amount","ask_price","bid_price","bid_amount"]
[1729261784322,4.563941,2629.3,2629.2,0.05704782]
[1729261784512,6.153941,2629.3,2629.2,0.05704782]
[1729261786331,5.39329,2629.3,2629.2,0.05704782]
[1729261786516,3.80329,2629.3,2629.2,0.05704782]
[1729261789055,3.80301,2629.5,2629.2,0.05704782]
[1729261789211,3.9291416,2629.9,2629.2,0.05704782]
[1729261789212,3.80289,2629.6,2629.3,0.07606271]
[1729261789411,3.80303,2629.5,2629.2,0.05704782]
[1729261789661,3.80272,2629.7,2629.2,3.86046782]
[1729261789856,5.4862616,2629.9,2629.2,0.05704782]
[1729261790036,3.8027,2629.8,2629.4,1.6344]
[1729261790360,3.80278,2629.7,2629.4,1.6344]
[1729261790531,0.1266416,2629.9,2629.5,0.07605391]
[1729261790734,0.1266416,2629.9,2629.6,3.80285]
[1729261791030,0.1266416,2629.9,2629.4,1.6344]
[1729261791031,3.80276,2629.7,2629.4,1.6344]
[1729261791258,3.80257,2629.8,2629.4,1.6344]
[1729261791455,3.9290616,2629.9,2629.5,0.07605203]
[1729261791618,3.9290916,2629.9,2629.4,1.6344]
[1729261791824,3.9290916,2629.9,2629.4,5.43753]
[1729261792147,3.80264,2629.8,2629.6,0.05703249]
[1729261792346,7.60531,2629.8,2629.6,0.05703249]
[1729261792564,3.80271,2629.7,2629.6,0.05703249]
[1729261795767,5.33511,2629.7,2629.6,0.05703249]
[1729261797436,6.26154916,2629.7,2629.6,0.05703249]
[1729261797864,3.80264,2629.8,2629.6,0.05703249]
[1729261798070,3.80271,2629.7,2629.6,0.05703249]
[1729261798264,3.80257,2629.8,2629.6,0.05703249]
[1729261798426,3.80271,2629.7,2629.6,0.05703249]
[1729261798763,3.9290916,2629.9,2629.6,0.05703249]
[1729261799142,3.80271,2629.7,2629.6,0.05703249]
[1729261801084,6.21940316,2629.7,2629.6,0.05703249]
[1729261801372,9.21940316,2629.7,2629.6,0.05703249]
[1729261801675,3.80271,2629.7,2629.6,0.05703249]
[1729261803240,3.80271,2629.7,2628.6,1.652]
[1729261803241,3.80371,2629.1,2628.6,1.652]
[1729261803467,3.80337,2629.3,2628.7,0.0760693]
[1729261803645,3.80337,2629.3,2628.8,3.80399]
[1729261803838,3.80352,2629.2,2628.7,3.80414]
[1729261804037,3.80327,2629.4,2629.0,0.05704634]
[1729261804240,11.20017311,2629.9,2629.0,0.05704634]
[1729261804241,3.80267,2629.8,2629.0,0.13311278]
[1729261804475,3.80277,2629.7,2629.3,1.6249]
[1729261804666,3.80277,2629.7,2629.3,1.70095749]
[1729261804867,3.9291616,2629.9,2629.3,1.70095749]
[1729261805189,0.1266416,2629.9,2629.5,3.80297]
[1729261805375,0.1266416,2629.9,2629.6,3.80278]
[1729261805686,0.1266416,2629.9,2629.7,0.10321272]
[1729261805858,0.1266416,2629.9,2629.7,0.05704124]
[1729261806039,0.1266416,2629.9,2629.7,3.85975124]
[1729261806239,0.1266416,2629.9,2629.8,1.6451]
[1729261807277,3.80257,2629.8,2629.7,0.05704124]
[1729261807591,3.80257,2629.8,2629.7,1.39704124]
[1729261809084,3.80257,2629.8,2629.7,0.05704124]
[1729261809308,4.72994716,2629.8,2629.7,0.05704124]
[1729261810241,5.4712016,2629.9,2629.7,0.05704124]
[1729261810242,1.6686416,2629.9,2629.7,0.05704124]
[1729261810387,3.80257,2629.8,2629.7,0.05704124]
[1729261810788,3.9290816,2629.9,2629.7,0.05704124]
[1729261810990,0.1266416,2629.9,2629.7,0.05704124]
[1729261811691,0.1266416,2629.9,2629.7,3.85967124]
[1729261811885,0.1266416,2629.9,2629.8,3.80257]
[1729261812610,0.1266416,2629.9,2629.8,5.32457]
[1729261812818,0.1266416,2629.9,2629.8,1.522]
[1729261813197,0.1266416,2629.9,2629.8,4.0]
[1729261813820,3.9290616,2629.9,2629.8,4.0]
[1729261814121,0.1266416,2629.9,2629.8,4.0]
[1729261814421,0.1266416,2629.9,2629.7,0.05704124]
[1729261814585,0.1266416,2629.9,2629.8,3.87861187]
[1729261814917,0.1266416,2629.9,2629.8,5.36257]
[1729261815823,0.1266416,2629.9,2629.8,9.36257]
[1729261816398,0.1266416,2629.9,2629.8,9.91257]
[1729261817107,0.1266416,2629.9,2629.8,4.0]
[1729261818733,3.9290616,2629.9,2629.8,4.0]
[1729261818896,4.59134483,2629.9,2629.8,4.0]
[1729261819502,3.80257,2629.8,2629.7,0.05704124]
[1729261819700,5.32147,2629.8,2629.7,0.05704124]
[1729261819919,3.80257,2629.8,2629.7,0.05704124]
[1729261820510,3.9290716,2629.9,2629.7,0.05704124]
[1729261820700,3.80257,2629.8,2629.7,0.05704124]
[1729261820897,3.9290716,2629.9,2629.7,0.05704124]
[1729261821102,3.9290716,2629.9,2629.7,1.63034124]
[1729261821103,0.1266416,2629.9,2629.7,1.63034124]
[1729261821335,3.9291616,2629.9,2629.7,1.63034124]
[1729261821727,0.1266416,2629.9,2629.7,1.63034124]
[1729261824176,0.1266416,2629.9,2629.7,0.05704124]
[1729261824537,3.9291616,2629.9,2629.7,0.05704124]
[1729261824979,3.80257,2629.8,2629.7,0.05704124]
[1729261825276,5.41067,2629.8,2629.7,0.05704124]
[1729261826152,3.9291516,2629.9,2629.7,0.05704124]
[1729261826487,0.1266416,2629.9,2629.7,1.57114124]
[1729261826642,3.80257,2629.8,2629.7,1.57114124]
[1729261826838,0.1266416,2629.9,2629.7,1.57114124]
[1729261827270,3.80257,2629.8,2629.7,0.05704124]
[1729261827980,3.9290816,2629.9,2629.7,0.05704124]
[1729261828495,0.1266416,2629.9,2629.7,0.05704124]
[1729261829792,0.1266416,2629.9,2629.7,3.85969124]
[1729261830009,0.1266416,2629.9,2629.7,0.05704124]
[1729261830206,0.1266416,2629.9,2629.7,4.05704124]
[1729261830680,0.1266416,2629.9,2629.7,7.85973124]
[1729261830881,0.1266416,2629.9,2629.7,0.05704124]
[1729261831199,0.1266416,2629.9,2629.7,3.85967124]
[1729261832004,0.1266416,2629.9,2629.8,3.80257]
[1729261832161,0.1266416,2629.9,2629.7,0.05704124]
[1729261832659,3.9291216,2629.9,2629.7,0.05704124]
[1729261832875,3.80257,2629.8,2629.7,0.05704124]
[1729261833897,3.80257,2629.8,2629.7,4.05704124]
[1729261834276,3.80257,2629.8,2629.7,0.05704124]
[1729261836072,3.9290916,2629.9,2629.7,0.05704124]
[1729261836394,0.1266416,2629.9,2629.7,0.05704124]
[1729261836602,3.9291416,2629.9,2629.7,0.05704124]
[1729261837397,3.9291416,2629.9,2629.7,4.05704124]
[1729261837900,0.1266416,2629.9,2629.7,4.05704124]
[1729261838201,0.1266416,2629.9,2629.8,5.42277]
[1729261838696,0.1266416,2629.9,2629.8,9.42277]
[1729261839208,0.1266416,2629.9,2629.8,4.0]
[1729261839877,3.9290616,2629.9,2629.8,4.0]
[1729261840268,0.1266416,2629.9,2629.7,0.05704124]
[1729261840480,3.9290616,2629.9,2629.7,0.05704124]
[1729261840700,0.1266416,2629.9,2629.7,0.05704124]
[1729261841178,3.80257,2629.8,2629.7,0.05704124]
[1729261841374,3.9291216,2629.9,2629.7,4.05704124]
[1729261841777,3.80257,2629.8,2629.7,4.05704124]
[1729261842104,0.1266416,2629.9,2629.7,4.05704124]
[1729261842330,0.1266416,2629.9,2629.8,0.07605099]
[1729261842534,0.1266416,2629.9,2629.8,3.80257]
[1729261842690,0.1266416,2629.9,2629.8,7.80257]
[1729261844002,0.1266416,2629.9,2629.8,9.37017]
[1729261844199,0.1266416,2629.9,2629.8,9.92017]
[1729261844537,0.1266416,2629.9,2629.8,9.37017]
[1729261846138,0.1266416,2629.9,2629.8,4.0]
[1729261846305,4.85876538,2629.9,2629.8,4.0]
[1729261846708,6.50506538,2629.9,2629.8,4.0]
[1729261847108,3.80257,2629.8,2629.7,0.05704124]
[1729261847525,9.17067622,2629.8,2629.7,0.05704124]
[1729261847798,5.44887,2629.8,2629.7,0.05704124]
[1729261847994,6.85986254,2629.8,2629.7,0.05704124]
[1729261848194,3.80257,2629.8,2629.7,0.05704124]
[1729261848419,0.1266416,2629.9,2629.7,0.05704124]
[1729261848623,0.1266416,2629.9,2629.8,3.80257]
[1729261848804,0.1266416,2629.9,2629.8,7.52437622]
[1729261849022,0.1266416,2629.9,2629.8,3.80257]
[1729261849195,0.1266416,2629.9,2629.7,5.48615124]
[1729261849539,0.1266416,2629.9,2629.7,0.05704124]
[1729261850126,3.9290716,2629.9,2629.7,0.05704124]
[1729261850491,0.1266416,2629.9,2629.7,0.05704124]
[1729261853031,3.9290716,2629.9,2629.7,0.05704124]
[1729261853325,3.80257,2629.8,2629.7,0.05704124]
[1729261854040,3.9290816,2629.9,2629.7,0.05704124]
[1729261854197,0.1266416,2629.9,2629.7,0.05704124]
[1729261854839,3.9291416,2629.9,2629.7,0.05704124]
[1729261855151,5.89665576,2629.9,2629.7,0.05704124]
[1729261855357,3.80257,2629.8,2629.7,0.05704124]
[1729261857209,8.46697,2629.8,2629.7,1.24e-06]
[1729261857675,5.46805,2629.1,2628.7,4.0]
[1729261857963,3.80338,2629.3,2628.7,5.5311]
[1729261858265,3.80318,2629.4,2628.9,3.86084115]
[1729261858565,3.803,2629.5,2628.9,3.86084115]
[1729261858566,3.80332,2629.3,2628.9,3.86084115]
[1729261858764,3.80322,2629.4,2628.9,3.86084115]
[1729261858964,3.80335,2629.3,2628.9,0.05705115]
[1729261859148,3.80336,2629.3,2628.9,0.05705115]
[1729261859460,1.6644,2629.6,2629.0,3.80362]
[1729261859621,3.80307,2629.5,2629.0,7.60728]
[1729261859817,1.6644,2629.6,2628.9,0.05705115]
[1729261859818,3.80339,2629.3,2628.9,0.05705115]
[1729261860053,3.80345,2629.2,2628.9,0.05705115]
[1729261860844,3.80329,2629.3,2628.9,0.05705115]
[1729261861822,3.80317,2629.4,2628.9,0.05705115]
[1729261862022,3.80257,2629.8,2629.0,0.07606566]
[1729261862258,3.80279,2629.7,2629.2,5.35084]
[1729261862553,3.8028,2629.7,2629.2,5.35093]
[1729261862768,3.80294,2629.6,2629.2,1.5475]
[1729261863268,0.760565,2629.6,2629.2,0.05705004]
[1729261863578,1.6737416,2629.9,2629.2,0.05705004]
[1729261863579,3.80329,2629.3,2629.2,0.05705004]
[1729261865067,5.39976,2629.4,2629.2,0.05705004]
[1729261865359,3.80329,2629.3,2629.2,0.05705004]
[1729261873894,3.80293,2629.6,2629.2,0.05705004]
[1729261874267,3.80267,2629.8,2629.2,3.86042004]
[1729261874487,3.80267,2629.8,2629.3,5.45238]
[1729261874650,3.80293,2629.6,2629.3,1.6491]
[1729261874852,3.80301,2629.5,2629.3,1.6491]
[1729261875278,7.60585,2629.6,2629.3,1.6491]
[1729261875793,3.80286,2629.6,2629.3,1.6491]
[1729261876383,7.60581,2629.6,2629.3,1.6491]
[1729261876556,3.80321,2629.4,2629.2,0.05705004]
[1729261876759,3.80329,2629.3,2629.2,0.05705004]
[1729261877256,4.7182,2629.3,2629.2,0.05705004]
[1729261879102,3.80321,2629.4,2629.2,0.05705004]
[1729261879307,3.80329,2629.3,2629.2,0.05705004]
[1729261879662,3.80321,2629.4,2629.2,0.05705004]
[1729261880285,3.80329,2629.3,2629.2,0.05705004]
[1729261880691,3.80321,2629.4,2629.2,0.05705004]
[1729261881565,3.80316,2629.4,2629.2,0.05705004]
[1729261882300,3.80329,2629.3,2629.2,0.05705004]
[1729261883113,5.34309,2629.3,2629.2,0.05705004]
[1729261883610,3.80329,2629.3,2629.2,0.05705004]
[1729261884395,3.80316,2629.4,2629.2,0.05705004]
[1729261884704,3.80329,2629.3,2629.2,0.05705004]
[1729261887648,7.6064,2629.4,2629.2,0.05705004]
[1729261887937,3.80329,2629.3,2629.2,0.05705004]
[1729261891557,8.37803,2629.7,2629.2,0.05705004]
[1729261891558,3.80307,2629.5,2629.2,0.05705004]
[1729261891728,7.6056,2629.7,2629.3,1.5337]
[1729261891938,3.80307,2629.5,2629.3,1.5337]
[1729261892244,3.80292,2629.6,2629.3,1.5337]
[1729261894070,3.80306,2629.5,2629.3,1.5337]
[1729261894438,3.80292,2629.6,2629.3,1.5337]
[1729261895267,7.60591,2629.6,2629.3,1.5337]
[1729261895435,3.80292,2629.6,2629.3,1.5337]
[1729261895833,3.80281,2629.7,2629.3,1.5337]
[1729261896576,0.1266416,2629.9,2629.6,3.80277]
[1729261896801,0.1266416,2629.9,2629.7,1.5867]
[1729261896954,0.1266416,2629.9,2629.8,3.80257]
[1729261897279,0.1266416,2629.9,2629.7,5.38941]
[1729261897446,0.1266416,2629.9,2629.8,3.80257]
[1729261897633,0.1266416,2629.9,2629.8,8.93871321]
[1729261897834,0.1266416,2629.9,2629.8,8.86267]
[1729261898031,0.1266416,2629.9,2629.8,8.31267]
[1729261898434,0.1266416,2629.9,2629.8,8.86267]
[1729261898636,0.1266416,2629.9,2629.8,11.73619964]
[1729261898881,0.1266416,2629.9,2629.8,13.07627239]
[1729261899083,0.1266416,2629.9,2629.8,36.25593551]
[1729261899084,1.6e-06,2629.9,2629.8,36.25593551]
[1729261899285,0.01901685,2630.5,2630.4,5.9339]
[1729261899481,5.33271,2631.5,2630.6,3.8014]
[1729261899482,3.80041,2631.3,2630.6,3.8014]
[1729261899730,1.5326,2631.5,2630.9,3.80088]
[1729261899882,1.5326,2631.5,2631.1,0.05700863]
[1729261900089,1.6536,2631.8,2631.1,3.85761863]
[1729261900295,5.45339,2631.8,2631.1,7.58236834]
[1729261900527,5.45339,2631.8,2631.1,3.85761863]
[1729261900925,5.45339,2631.8,2631.2,0.07600207]
[1729261900926,1.6536,2631.8,2631.2,0.07600207]
[1729261901224,3.79902,2632.3,2631.5,3.72474971]
[1729261901225,1.6132,2632.3,2631.5,3.72474971]
[1729261901439,7.4766416,2632.5,2631.8,3.7996]
[1729261901600,7.4766416,2632.5,2632.0,3.79937]
[1729261901601,0.1266416,2632.5,2632.0,3.79937]
[1729261901816,0.1266416,2632.5,2631.9,3.80072977]
[1729261902007,0.1266416,2632.5,2632.0,3.79929]
[1729261902208,0.1266416,2632.5,2631.8,1.6405]
[1729261902209,0.1266416,2632.5,2632.3,0.05698353]
[1729261902850,0.1266416,2632.5,2632.3,3.78173324]
[1729261903349,0.1266416,2632.5,2632.4,5.90647622]
[1729261903643,0.1266416,2632.5,2632.4,8.88311]
[1729261904258,0.1266416,2632.5,2632.4,13.20297544]
[1729261905042,0.1266416,2632.5,2632.4,9.40416544]
[1729261905416,0.1266416,2632.5,2632.4,13.20297544]
[1729261905745,0.1266416,2632.5,2632.4,1.5343]
[1729261906718,0.1266416,2632.5,2632.4,5.85416544]
[1729261907501,0.1266416,2632.5,2632.4,6.40416544]
[1729261907800,0.1266416,2632.5,2632.4,5.85416544]
[1729261908016,0.1266416,2632.5,2632.4,1.5343]
[1729261908850,0.1266416,2632.5,2632.3,0.05698353]
[1729261908851,3.79881,2632.4,2632.3,0.05698353]
[1729261909707,6.12702216,2632.4,2632.3,0.05698353]
[1729261910807,13.4468876,2632.4,2632.3,3.53e-06]
[1729261911354,9.12702216,2632.4,2632.3,3.53e-06]
[1729261911807,3.79976,2631.8,2631.2,4.37041402]
[1729261912008,3.79997,2631.6,2631.2,4.31986544]
[1729261912431,3.79997,2631.6,2631.4,0.05699859]
[1729261912742,3.80011,2631.5,2631.4,0.05699859]
[1729261912917,4.560118,2631.5,2631.4,0.05699859]
[1729261914302,3.80011,2631.5,2631.4,0.05699859]
[1729261914859,3.79993,2631.7,2631.4,0.05699859]
[1729261915009,3.7998,2631.8,2631.4,0.05699859]
[1729261915649,1.5858,2632.1,2631.4,0.05699859]
[1729261915811,3.79933,2632.1,2631.6,1.6138]
[1729261916141,3.79912,2632.2,2631.8,4.31986544]
[1729261916355,1.7124416,2632.5,2631.8,4.31986544]
[1729261916356,3.9253716,2632.5,2631.8,4.31986544]
[1729261916537,3.79897,2632.3,2631.8,4.31986544]
[1729261916725,7.7241716,2632.5,2632.0,0.05698316]
[1729261916919,3.9253916,2632.5,2632.1,0.0723366]
[1729261917127,3.9253916,2632.5,2632.0,0.05698316]
[1729261917308,7.7241816,2632.5,2632.0,0.05698316]
[1729261917523,3.9253916,2632.5,2632.0,0.05698316]
[1729261917721,3.9253916,2632.5,2632.1,4.31986544]
[1729261917722,0.1266416,2632.5,2632.1,4.31986544]
[1729261917959,0.1266416,2632.5,2632.2,1.5379]
[1729261919017,3.9254316,2632.5,2632.2,1.5379]
[1729261920022,0.1266416,2632.5,2632.2,1.5379]
[1729261921122,0.1266416,2632.5,2632.0,0.05698316]
[1729261921437,0.1266416,2632.5,2632.1,4.31986544]
[1729261921744,3.9253116,2632.5,2632.1,4.31986544]
[1729261921952,3.9253116,2632.5,2632.0,0.05698316]
[1729261922458,3.79907,2632.3,2632.0,0.05698316]
[1729261922667,1.523,2632.4,2632.0,0.05698316]
[1729261922840,3.79904,2632.3,2632.0,0.05698316]
[1729261923166,3.9253316,2632.5,2632.0,0.05698316]
[1729261923371,0.1266416,2632.5,2632.1,1.5628]
[1729261923526,0.1266416,2632.5,2632.4,3.79881]
[1729261924274,0.1266416,2632.5,2632.4,13.22367544]
[1729261925666,0.1266416,2632.5,2632.4,12.67367544]
[1729261925870,0.1266416,2632.5,2632.4,13.22367544]
[1729261927075,0.1266416,2632.5,2632.4,1.555]
[1729261927229,3.9254216,2632.5,2632.1,1.5794]
[1729261927430,0.1266416,2632.5,2632.4,8.11867544]
[1729261927863,0.1266416,2632.5,2632.4,9.69807544]
[1729261928638,0.1266416,2632.5,2632.4,10.24807544]
[1729261928835,0.1266416,2632.5,2632.4,13.24807544]
[1729261931161,0.1266416,2632.5,2632.4,17.56794088]
[1729261931386,0.1266416,2632.5,2632.4,23.11284023]
[1729261931867,0.1266416,2632.5,2632.4,13.24807544]
[1729261932568,0.1266416,2632.5,2632.4,18.67765444]
[1729261933076,0.1266416,2632.5,2632.4,13.24807544]
[1729261934337,0.1266416,2632.5,2632.4,9.69807544]
[1729261934678,0.1266416,2632.5,2632.4,5.89926544]
[1729261935338,0.1266416,2632.5,2632.4,10.21913088]
[1729261935651,0.1266416,2632.5,2632.4,13.67715023]
[1729261935829,0.1266416,2632.5,2632.4,14.22715023]
[1729261937874,0.1266416,2632.5,2632.4,13.76913088]
[1729261938350,0.01901685,2633.0,2632.6,0.55]
[1729261938533,1.5052,2634.2,2632.6,0.55]
[1729261938534,3.79643,2634.1,2633.1,1.5708]
[1729261938739,3.79657,2634.0,2633.6,4.31986544]
[1729261939061,3.79657,2634.0,2633.8,0.05694514]
[1729261939258,3.79643,2634.1,2633.8,0.05694514]
[1729261939444,1.5052,2634.2,2633.8,0.05694514]
[1729261939633,7.59288,2634.1,2633.8,0.05694514]
[1729261939831,3.79644,2634.1,2633.8,0.05694514]
[1729261940442,7.59292,2634.1,2633.8,0.05694514]
[1729261940761,3.79644,2634.1,2633.8,0.05694514]
[1729261941070,5.30143,2634.2,2633.8,0.05694514]
[1729261941536,3.79638,2634.1,2633.8,0.05694514]
[1729261941971,5.30142,2634.2,2633.8,0.05694514]
[1729261942652,5.30143,2634.2,2633.8,0.05694514]
[1729261943047,5.30143,2634.2,2633.7,3.79683]
[1729261943278,3.79638,2634.1,2633.6,4.31986544]
[1729261943874,3.79639,2634.1,2633.6,8.11693544]
[1729261944078,3.79639,2634.1,2633.9,0.05694514]
[1729261944586,5.4465,2634.0,2633.9,0.05694514]
[1729261946042,1.65,2634.0,2633.9,0.05694514]
[1729261946240,5.4465,2634.0,2633.9,0.05694514]
[1729261946535,5.4465,2634.0,2633.5,3.79721]
[1729261946536,3.79639,2634.1,2633.7,3.79693]
[1729261946738,5.36523,2634.2,2633.8,0.05695246]
[1729261946962,3.79618,2634.3,2633.8,0.13288182]
[1729261947137,3.79618,2634.3,2633.8,0.05695246]
[1729261947340,1.569,2634.4,2633.8,0.05695246]
[1729261947341,5.36495,2634.4,2633.8,0.13287958]
[1729261947586,5.36495,2634.4,2633.8,3.85367246]
[1729261947880,3.79621,2634.2,2633.8,3.85367246]
[1729261948240,1.569,2634.4,2633.8,3.85366246]
[1729261948444,3.79608,2634.3,2633.9,3.8725571]
[1729261948642,1.569,2634.4,2633.8,0.05695246]
[1729261948842,3.79629,2634.2,2633.8,0.05695246]
[1729261949243,3.79607,2634.3,2633.8,0.05695246]
[1729261949464,1.569,2634.4,2633.8,0.05695246]
[1729261949465,3.79641,2634.1,2633.8,0.05695246]
[1729261949855,3.79665,2633.9,2633.8,0.05695246]
[1729261950449,3.7965,2634.0,2633.8,0.05695246]
[1729261950650,3.79665,2633.9,2633.8,0.05695246]
[1729261950987,3.79654,2634.0,2633.8,0.05695246]
[1729261952568,3.79665,2633.9,2633.8,0.05695246]
[1729261952760,3.79654,2634.0,2633.8,0.05695246]
[1729261952957,3.79643,2634.1,2633.8,0.05695246]
[1729261953181,3.79657,2634.0,2633.8,0.05695246]
[1729261953483,3.79665,2633.9,2633.8,0.05695246]
[1729261953703,5.39325,2633.9,2633.8,0.05695246]
[1729261956096,1.5966,2633.9,2633.8,0.05695246]
[1729261956306,1.6466,2634.4,2633.8,0.05695246]
[1729261956505,3.79647,2634.1,2633.8,0.05695246]
[1729261956720,2.12625,2634.4,2633.8,0.05695246]
[1729261957023,5.31935,2633.9,2633.8,0.05695246]
[1729261957523,3.79622,2634.2,2633.8,0.05695246]
[1729261957815,0.1499,2634.5,2634.1,3.79635]
[1729261958114,0.1499,2634.5,2634.1,3.79628]
[1729261958275,0.1499,2634.5,2634.0,1.6573]
[1729261958480,0.1499,2634.5,2634.3,3.79606]
[1729261958789,0.1499,2634.5,2634.0,5.45371]
[1729261958992,0.1499,2634.5,2634.3,3.79595]
[1729261959175,0.1499,2634.5,2634.3,3.87186253]
[1729261959377,0.1499,2634.5,2634.4,5.41753]
[1729261959633,0.1266416,2635.1,2635.0,5.41326]
[1729261959915,0.1266416,2635.1,2635.0,17.6788748]
[1729261960116,0.1266416,2635.1,2635.0,13.28312544]
[1729261960423,5.36322,2636.7,2635.7,8.96225]
[1729261960579,5.36319,2636.7,2635.7,13.28211544]
[1729261960786,5.36319,2636.7,2636.0,3.79354]
[1729261961090,5.36319,2636.7,2636.1,3.79344]
[1729261961295,3.79277,2636.6,2636.0,3.79352]
[1729261961823,1.5705,2636.7,2636.1,3.7934]
[1729261962113,3.79303,2636.5,2635.9,0.05689552]
[1729261962322,2.106792,2636.7,2635.9,0.05689552]
[1729261962494,7.58594,2636.5,2635.9,0.05689552]
[1729261962692,3.79295,2636.5,2635.9,0.05689552]
[1729261962877,3.79278,2636.6,2635.9,0.05689552]
[1729261963082,5.36318,2636.7,2635.9,0.05689552]
[1729261963083,3.79291,2636.5,2635.9,0.05689552]
[1729261963319,3.79237,2636.9,2636.2,4.31986544]
[1729261963480,3.79237,2636.9,2636.2,8.11318544]
[1729261963842,3.79077,2638.0,2636.6,4.31986544]
[1729261963843,3.79192,2637.2,2636.6,4.31986544]
[1729261964139,3.79192,2637.2,2636.3,5.94286544]
[1729261964140,3.79241,2636.9,2636.3,5.94286544]
[1729261964415,3.79204,2637.1,2636.3,5.94286544]
[1729261964416,3.79248,2636.8,2636.5,0.05687943]
[1729261964616,3.79221,2637.0,2636.5,0.05687943]
[1729261964822,3.79197,2637.2,2636.6,4.31986544]
[1729261965320,3.7914,2637.6,2636.8,0.55]
[1729261965525,1.6499416,2637.7,2636.8,0.55]
[1729261965526,3.79154,2637.5,2636.8,0.55]
[1729261965885,3.79154,2637.5,2637.0,4.31986544]
[1729261966085,3.79176,2637.3,2637.0,4.31986544]
[1729261966281,3.79176,2637.3,2636.7,5.91826544]
[1729261966489,3.79154,2637.5,2637.0,4.31986544]
[1729261966704,1.6499416,2637.7,2637.2,0.05687287]
[1729261966894,7.58318,2637.5,2637.2,0.05687287]
[1729261967095,3.7915,2637.5,2637.2,0.05687287]
[1729261967282,0.1266416,2637.7,2637.2,0.05687287]
[1729261967479,3.79175,2637.3,2637.2,0.05687287]
[1729261967908,3.79151,2637.5,2637.2,0.05687287]
[1729261968621,3.79137,2637.6,2637.2,0.05687287]
[1729261968943,3.79154,2637.5,2637.2,0.05687287]
[1729261969100,3.79137,2637.6,2637.2,0.05687287]
[1729261969704,3.9178216,2637.7,2637.2,0.05687287]
[1729261970025,3.79136,2637.6,2637.2,0.05687287]
[1729261970252,3.79175,2637.3,2636.7,1.5984]
[1729261970525,1.6137,2637.5,2636.4,4.6499]
[1729261970888,3.79161,2637.4,2636.4,4.6499]
[1729261971092,3.79261,2636.7,2636.6,0.05688004]
[1729261971993,4.5376,2636.7,2635.5,1.5586]
[1729261972333,3.79355,2636.1,2635.5,1.5586]
[1729261972721,3.79357,2636.1,2635.7,0.05689254]
[1729261973087,3.79325,2636.3,2635.7,0.05689254]
[1729261973486,3.79296,2636.5,2635.7,0.05689254]
[1729261973733,4.31986544,2637.2,2635.7,0.05689254]
[1729261973734,3.79331,2636.3,2635.7,4.37675798]
[1729261973934,3.79296,2636.5,2635.7,0.05689254]
[1729261974288,7.586,2636.5,2635.7,0.05689254]
[1729261974511,3.79296,2636.5,2635.7,0.05689254]
[1729261974715,3.7928,2636.6,2635.7,4.37675798]
[1729261974939,7.58545,2636.7,2635.7,4.37675798]
[1729261975133,1.5141,2637.0,2635.7,4.37675798]
[1729261975134,3.79292,2636.5,2635.8,1.5573]
[1729261975427,3.7927,2636.7,2635.8,1.5573]
[1729261975649,0.37927,2636.7,2635.8,1.5573]
[1729261975789,3.79325,2636.3,2635.8,1.5573]
[1729261976336,3.79337,2636.2,2635.8,1.5573]
[1729261977024,3.7937,2636.0,2635.8,1.5573]
[1729261977233,3.7937,2636.0,2635.7,0.05689254]
[1729261977427,3.79379,2635.9,2635.7,0.05689254]
[1729261977611,7.58741,2636.0,2635.7,0.05689254]
[1729261977928,3.79343,2636.2,2635.7,0.05689254]
[1729261978100,3.79328,2636.3,2635.7,0.05689254]
[1729261978299,3.79335,2636.2,2635.7,0.05689254]
[1729261978892,1.5113,2636.4,2635.7,0.05689254]
[1729261979112,7.58717,2636.1,2635.7,0.05689254]
[1729261979431,3.79357,2636.1,2635.7,0.05689254]
[1729261979937,3.79377,2635.9,2635.7,0.05689254]
[1729261980429,7.58659,2636.3,2635.7,0.05689254]
[1729261980731,3.79358,2636.1,2635.7,0.05689254]
[1729261980933,4.69922344,2636.1,2635.7,0.05689254]
[1729261981161,12.63517544,2635.8,2635.7,0.05689254]
[1729261981290,3.79535,2634.9,2634.5,1.5605]
[1729261981603,3.0,2635.3,2634.1,1.6182]
[1729261981807,3.79592,2634.5,2634.3,0.0569257]
[1729261982189,3.79593,2634.4,2634.3,0.0569257]
[1729261982533,3.79592,2634.5,2634.3,0.0569257]
[1729261982738,3.79593,2634.4,2634.3,0.0569257]
[1729261983157,9.212815,2634.4,2634.3,0.0569257]
[1729261983443,13.53268044,2634.4,2634.3,0.0569257]
[1729261983734,5.46243,2633.7,2632.9,1.665]
[1729261984066,3.79587,2634.5,2633.4,5.98486544]
[1729261984336,3.79455,2635.4,2634.1,3.79628]
[1729261984337,3.79535,2634.8,2634.1,3.79628]
[1729261984503,4.31986544,2634.6,2633.6,1.665]
[1729261984707,3.7965,2634.1,2633.4,0.03254629]
[1729261984937,3.79675,2633.9,2633.4,0.03254629]
[1729261985096,3.79718,2633.6,2633.2,1.665]
[1729261985530,3.79716,2633.6,2632.9,3.79805]
[1729261985853,3.79716,2633.6,2632.8,1.6652]
[1729261985854,3.79739,2633.4,2632.8,1.6652]
[1729261985992,3.79739,2633.4,2633.0,0.05695347]
[1729261986331,3.79717,2633.6,2633.0,0.05695347]
[1729261986519,7.59435,2633.6,2633.0,0.05695347]
[1729261986719,3.79717,2633.6,2633.0,0.05695347]
[1729261987121,3.79694,2633.7,2633.0,3.85480347]
[1729261987322,3.79731,2633.5,2633.0,0.05695347]
[1729261987640,4.55639,2633.7,2633.0,0.05695347]
[1729261987940,3.79725,2633.5,2633.0,0.05695347]
[1729261988106,4.55639,2633.7,2633.0,3.85489347]
[1729261988498,8.35343,2633.7,2633.0,3.85489347]
[1729261988698,4.55639,2633.7,2633.0,3.85489347]
[1729261989038,1.5708,2634.3,2633.5,3.79716]
[1729261989243,5.3669,2634.3,2633.6,0.07593121]
[1729261989415,3.79637,2634.1,2633.5,7.5943]
[1729261989755,3.79584,2634.5,2633.8,3.79679]
[1729261990054,1.5708,2634.6,2634.0,3.8534238]
[1729261990247,3.79558,2634.7,2634.0,3.8533538]
[1729261990405,3.79558,2634.7,2634.0,3.8533138]
[1729261990716,5.36607,2634.9,2634.0,3.8534038]
[1729261990912,3.7955,2634.7,2634.0,7.6498638]
[1729261991116,3.79632,2634.2,2634.0,0.0569438]
[1729261991331,3.796,2634.4,2634.0,0.0569438]
[1729261991509,3.79619,2634.3,2634.0,0.0569438]
[1729261991845,3.796,2634.4,2634.0,0.0569438]